lending/lending_fUSD_20250917
["ID","MTS","AMOUNT","RATE_DAILY","PERIOD"]
[385953048,1758148254849,-650.58,0.00022492,2]
[385953049,1758148254858,-945.86,0.00022492,2]
[385953050,1758148254869,-400.0,0.00022492,2]
[385953051,1758148254879,-400.0,0.00022492,2]
[385953052,1758148254890,-400.0,0.00022492,2]
[385953053,1758148254900,-400.0,0.00022492,2]
[385953054,1758148254910,-400.0,0.00022492,2]
[385953055,1758148254919,-455.26,0.00022492,2]
[385953056,1758148254929,-400.0,0.00022492,2]
[385953057,1758148254938,-676.31,0.00022492,2]
[385953058,1758148254948,-1231.11,0.00022492,2]
[385953059,1758148254957,-1537.16,0.00022492,2]
[385953060,1758148254967,-710.86,0.00022492,2]
[385953061,1758148254977,-2141.22,0.00022492,2]
[385953062,1758148254987,-400.0,0.00022492,2]
[385953063,1758148254996,-1326.07,0.00022492,2]
[385953064,1758148255006,-500.0,0.00022504,2]
[385953065,1758148255015,-400.0,0.00022505,2]
[385953066,1758148255025,-568.88,0.00022505,2]
[385953067,1758148255035,-400.0,0.00022505,2]
[385953068,1758148255044,-421.96,0.00022505,2]
[385953069,1758148255054,-400.0,0.00022505,2]
[385953070,1758148255063,-151.0,0.00022505,7]
[385953071,1758148255073,-151.0,0.00022505,7]
[385953072,1758148255082,-400.0,0.00022505,2]
[385953073,1758148255092,-289.51368889,0.00022505,2]
[385953074,1758148255101,-400.0,0.00022505,2]
[385953075,1758148255111,-400.0,0.00022505,2]
[385953076,1758148255121,-400.0,0.00022505,2]
[385953077,1758148255131,-400.0,0.00022505,2]
[385953078,1758148255141,-400.0,0.00022505,2]
[385953079,1758148255151,-400.0,0.00022505,2]
[385953080,1758148255160,-400.0,0.00022505,2]
[385953081,1758148255170,-400.0,0.00022505,2]
[385953082,1758148255179,-379.71967754,0.00022505,2]
[385953083,1758148255189,-400.0,0.00022505,2]
[385953084,1758148255198,-400.0,0.00022505,2]
[385953085,1758148255207,-400.0,0.00022505,2]
[385953086,1758148255217,-400.0,0.00022505,2]
[385953087,1758148255227,-534.74270296,0.00022505,2]
[385953088,1758148255236,-151.0,0.00022505,7]
[385953089,1758148255246,-151.0,0.00022505,7]
[385953090,1758148255256,-424.06,0.00022505,2]
[385953091,1758148255266,-400.0,0.00022505,2]
[385953092,1758148255275,-151.0,0.00022505,7]
[385953093,1758148255284,-156.420548,0.00022505,7]
[385953094,1758148255294,-400.0,0.00022505,2]
[385953095,1758148255304,-151.0,0.00022505,7]
[385953096,1758148255313,-151.0,0.00022505,7]
[385953097,1758148255323,-400.0,0.00022505,2]
[385953098,1758148255338,-400.0,0.00022505,2]
[385953099,1758148255347,-270.598768,0.00022505,7]
[385953100,1758148255356,-151.0,0.00022505,7]
[385953101,1758148255366,-402.77,0.00022505,2]
[385953102,1758148255376,-400.0,0.00022505,2]
[385953103,1758148255386,-400.0,0.00022505,2]
[385953104,1758148255395,-400.0,0.00022505,2]
[385953105,1758148255405,-276.61255584,0.00022505,2]
[385953106,1758148255414,-151.0,0.00022505,7]
[385953107,1758148255424,-400.0,0.00022505,2]
[385953108,1758148255433,-356.64890976,0.00022505,2]
[385953109,1758148255773,-43.35109024,0.00022505,2]
[385953110,1758148255783,-400.0,0.00022505,2]
[385953111,1758148255793,-400.0,0.00022505,2]
[385953112,1758148255802,-400.0,0.00022505,2]
[385953113,1758148255811,-400.0,0.00022505,2]
[385953114,1758148255820,-400.0,0.00022505,2]
[385953115,1758148255829,-400.0,0.00022505,2]
[385953116,1758148255840,-400.0,0.00022505,2]
[385953117,1758148255849,-151.0,0.00022505,7]
[385953118,1758148255858,-412.88,0.00022505,2]
[385953119,1758148255868,-343.66011811,0.00022505,2]
[385953120,1758148256214,-400.0,0.00022191,2]
[385953121,1758148256224,-400.0,0.00022191,2]
[385953122,1758148256233,-400.0,0.00022465,2]
[385953123,1758148256243,-400.0,0.00022465,2]
[385953124,1758148256253,-56.33988189,0.00022505,2]
[385953125,1758148256265,-168.574386,0.00022505,7]
[385953126,1758148256275,-151.0,0.00022505,7]
[385953127,1758148256284,-400.0,0.00022505,2]
[385953128,1758148256295,-151.0,0.00022505,7]
[385953129,1758148256304,-485.01,0.00022505,2]
[385953130,1758148256315,-400.0,0.00022505,2]
[385953131,1758148256326,-400.0,0.00022505,2]
[385953132,1758148256341,-400.0,0.00022505,2]
[385953133,1758148256351,-400.0,0.00022505,2]
[385953134,1758148256360,-400.0,0.00022505,2]
[385953135,1758148256369,-400.0,0.00022505,2]
[385953136,1758148256379,-151.0,0.00022505,7]
[385953137,1758148256388,-1591.83,0.00022505,2]
[385953138,1758148256397,-151.0,0.00022505,7]
[385953139,1758148256406,-400.0,0.00022505,2]
[385953140,1758148256417,-400.0,0.00022505,2]
[385953141,1758148256427,-154.632167,0.00022505,7]
[385953142,1758148256436,-395.2794727,0.00022505,2]
[385953143,1758148256449,-4.7205273,0.00022505,2]
[385953144,1758148256458,-400.0,0.00022505,2]
[385953145,1758148256468,-203.49678416,0.00022505,2]
[385953146,1758148256488,-196.50321584,0.00022505,2]
[385953147,1758148256498,-194.399999,0.00022505,7]
[385953148,1758148256509,-278.55134546,0.00022505,2]
[385953149,1758148256521,-121.44865454,0.00022505,2]
[385953150,1758148256530,-400.0,0.00022505,2]
[385953151,1758148256540,-355.10498474,0.00022505,2]
[385953152,1758148256549,-466.33744159,0.00022505,2]
[385953153,1758148256558,-400.0,0.00022505,2]
[385953154,1758148256568,-31.19041806,0.00022505,2]
[385953155,1758148256584,-368.80958194,0.00022505,2]
[385953156,1758148256595,-400.0,0.00022505,2]
[385953157,1758148256605,-400.0,0.00022505,2]
[385953158,1758148256616,-400.0,0.00022505,2]
[385953159,1758148256625,-400.0,0.00022505,2]
[385953160,1758148256635,-400.0,0.00022505,2]
[385953161,1758148256646,-400.0,0.00022505,2]
[385953162,1758148256656,-400.0,0.00022505,2]
[385953163,1758148256666,-400.0,0.00022505,2]
[385953164,1758148256677,-2.89348806,0.00022505,2]
[385953165,1758148256689,-397.10651194,0.00022505,2]
[385953166,1758148256700,-400.0,0.00022505,2]
[385953167,1758148256710,-168.71485394,0.00022505,2]
[385953168,1758148256727,-231.28514606,0.00022505,2]
[385953169,1758148256736,-104.75207385,0.00022505,2]
[385953170,1758148256748,-295.24792615,0.00022505,2]
[385953171,1758148256758,-164.53525824,0.00022505,2]
[385953172,1758148256770,-284.19474176,0.00022505,2]
[385953173,1758148256779,-400.0,0.00022505,2]
[385953174,1758148256788,-400.0,0.00022505,2]
[385953175,1758148256798,-400.0,0.00022505,2]
[385953176,1758148256807,-48.0381873,0.00022505,2]
[385953177,1758148256819,-298.40000131,0.00022505,2]
[385953178,1758148256830,-53.56181139,0.00022505,2]
[385953179,1758148256839,-400.0,0.00022505,2]
[385953180,1758148256848,-476.95,0.00022505,2]
[385953181,1758148256857,-209.0381886,0.00022505,2]
[385953182,1758148256873,-190.9618114,0.00022505,2]
[385953183,1758148256882,-400.0,0.00022505,2]
[385953184,1758148256891,-440.19,0.00022505,2]
[385953185,1758148256900,-2457.75,0.00022505,2]
[385953186,1758148256909,-400.0,0.00022505,2]
[385953187,1758148256918,-400.0,0.00022505,2]
[385953188,1758148256927,-523.77,0.00022505,2]
[385953189,1758148256936,-400.0,0.00022505,2]
[385953190,1758148256946,-400.0,0.00022505,2]
[385953191,1758148256955,-400.0,0.00022505,2]
[385953192,1758148256964,-157.510964,0.00022505,7]
[385953193,1758148256973,-400.0,0.00022505,2]
[385953194,1758148256982,-123.26523503,0.00022505,2]
[385953195,1758148342051,500.0,0.00013699,2]
[385953205,1758148837112,154.12,0.00010465,2]
[385953206,1758148837667,154.12,0.00012209,2]
[385953207,1758148837726,154.12,0.00013953,2]
[385953208,1758148837770,154.12,0.00015697,2]
[385953209,1758148838004,154.12,0.00017441,2]
[385953210,1758148838240,154.12,0.00019185,2]
[385953213,1758148973823,-154.12,0.00020929,2]
[385953214,1758148974349,-177.31,0.00021187,2]
[385953215,1758148974371,-300.0,0.00021189,2]
[385953216,1758148974391,-581.18,0.00021191,2]
[385953218,1758149078311,-253.14,0.00021387,2]
[385953219,1758149078334,-165.9502822,0.00021443,2]
[385953220,1758149078355,-880.9097178,0.00021498,2]
[385953221,1758149097831,150.0,0.00020944,7]
[385953224,1758149112271,150.0,0.00020688,2]
[385953225,1758149112481,150.0,0.00020688,2]
[385953226,1758149112941,165.68517026,0.00020688,2]
[385953227,1758149118521,150.0,0.00020688,2]
[385953228,1758149119868,150.0,0.00020688,2]
[385953229,1758149119947,272.57810676,0.00020688,2]
[385953230,1758149126228,342.9032,0.00021087,2]
[385953231,1758149126895,154.70044452,0.00020688,2]
[385953232,1758149132305,101.52307846,0.00020688,2]
[385953242,1758149432370,-179.21878757,0.00020688,2]
[385953243,1758149432381,-48.47692154,0.00020688,2]
[385953244,1758149432391,-150.0,0.00020688,2]
[385953245,1758149432401,-22.43450387,0.00020688,2]
[385953246,1758149432413,-133.07457232,0.00020688,2]
[385953247,1758149432423,-150.0,0.00020688,2]
[385953248,1758149432433,-279.70733078,0.00020818,2]
[385953249,1758149432443,-173.86614943,0.00020899,2]
[385953250,1758149432453,-338.45,0.00020949,2]
[385953251,1758149432462,-425.38,0.00020976,2]
[385953252,1758149432472,-300.0,0.00020999,2]
[385953253,1758149432481,-1200.0,0.00020999,2]
[385953254,1758149432491,-300.0,0.00020999,2]
[385953255,1758149432500,-10000.0,0.00021,2]
[385953256,1758149432510,-179.21878757,0.00021,2]
[385953257,1758149432519,-179.21878757,0.00021,2]
[385953258,1758149432528,-200.0,0.00021578,2]
[385953259,1758149432539,-168.63,0.00021675,2]
[385953260,1758149432548,-151.0,0.00021745,2]
[385953261,1758149432558,-8565.75555911,0.00021745,2]
[385953263,1758149432568,-248.71531821,0.00021745,2]
[385953265,1758149432578,-874.0,0.00021757,2]
[385953266,1758149432587,-26899.8913,0.00021758,2]
[385953268,1758149432597,-1000.0,0.00021758,2]
[385953270,1758149432607,-698.97333759,0.000218,2]
[385953272,1758149432617,-1000.0,0.00021817,2]
[385953275,1758149432627,-5000.0,0.00021817,2]
[385953277,1758149432637,-7431.14205881,0.00021817,2]
[385953279,1758149432646,-160.96473729,0.00021817,2]
[385953281,1758149432656,-349.20831127,0.00021817,2]
[385953283,1758149432667,-5881.05375765,0.00021817,2]
[385953285,1758149432677,-264.0,0.000219,2]
[385953287,1758149432687,-151.0,0.00021904,2]
[385953289,1758149432698,-151.0,0.00021904,2]
[385953291,1758149432708,-151.0,0.00021904,2]
[385953293,1758149432718,-322.11,0.00021907,2]
[385953295,1758149432728,-322.11,0.00021907,2]
[385953297,1758149432738,-2196.89,0.00021907,2]
[385953299,1758149432748,-500.0,0.00021916,2]
[385953301,1758149432759,-500.0,0.00021916,2]
[385953303,1758149432769,-500.0,0.00021916,2]
[385953305,1758149432779,-500.0,0.00021916,2]
[385953307,1758149432790,-500.0,0.00021916,2]
[385953309,1758149432800,-306.93042564,0.00021916,2]
[385953311,1758149432810,-610.97989639,0.00021916,2]
[385953313,1758149432820,-400.0,0.00021917,2]
[385953315,1758149432830,-400.0,0.00021917,2]
[385953317,1758149432841,-408.05812379,0.00021917,2]
[385953319,1758149432851,-400.0,0.00021917,2]
[385953321,1758149432861,-400.0,0.00021917,2]
[385953323,1758149432871,-400.0,0.00021917,2]
[385953325,1758149432883,-400.0,0.00021917,2]
[385953328,1758149432893,-400.0,0.00021917,2]
[385953330,1758149432904,-460.97,0.00021917,2]
[385953331,1758149432914,-400.0,0.00021917,2]
[385953333,1758149432925,-400.0,0.00021917,2]
[385953336,1758149432935,-500.0,0.00021917,14]
[385953338,1758149432945,-400.0,0.00021917,2]
[385953340,1758149432956,-400.0,0.00021917,2]
[385953342,1758149432966,-400.0,0.00021917,2]
[385953344,1758149432977,-400.0,0.00021917,2]
[385953346,1758149432987,-400.0,0.00021917,2]
[385953348,1758149432997,-400.0,0.00021917,2]
[385953350,1758149433007,-400.0,0.00021917,2]
[385953352,1758149433017,-400.0,0.00021917,2]
[385953354,1758149433027,-400.0,0.00021917,2]
[385953356,1758149433039,-400.0,0.00021917,2]
[385953358,1758149433054,-400.0,0.00021917,2]
[385953360,1758149433064,-400.0,0.00021917,2]
[385953363,1758149433075,-407.93705561,0.00021917,2]
[385953365,1758149433086,-400.0,0.00021917,2]
[385953367,1758149433096,-417.53233064,0.00021917,2]
[385953369,1758149433107,-400.0,0.00021917,2]
[385953371,1758149433119,-400.0,0.00021917,2]
[385953373,1758149433129,-400.0,0.00021917,2]
[385953375,1758149433140,-189.6432749,0.00021917,2]
[385953377,1758149433150,-400.0,0.00021917,2]
[385953379,1758149433161,-400.0,0.00021917,2]
[385953381,1758149433171,-400.0,0.00021917,2]
[385953383,1758149433182,-400.0,0.00021917,2]
[385953385,1758149433192,-400.0,0.00021917,2]
[385953387,1758149433203,-400.0,0.00021917,2]
[385953389,1758149433213,-400.0,0.00021917,2]
[385953391,1758149433222,-173.74773803,0.00021917,2]
[385953393,1758149433233,-400.0,0.00021917,2]
[385953395,1758149433242,-400.0,0.00021917,2]
[385953397,1758149433252,-400.0,0.00021917,2]
[385953399,1758149433262,-212.34996892,0.00021917,2]
[385953401,1758149433278,-187.65003108,0.00021917,2]
[385953403,1758149433288,-400.0,0.00021917,2]
[385953405,1758149433298,-400.0,0.00021917,2]
[385953407,1758149433308,-407.34112144,0.00021917,2]
[385953409,1758149433318,-400.0,0.00021917,2]
[385953411,1758149433328,-535.28519896,0.00021917,2]
[385953413,1758149433338,-400.0,0.00021917,2]
[385953415,1758149433349,-400.0,0.00021917,2]
[385953417,1758149433359,-315.43543479,0.00021917,2]
[385953419,1758149433369,-400.0,0.00021917,2]
[385953421,1758149433379,-400.0,0.00021917,2]
[385953423,1758149433390,-400.0,0.00021917,2]
[385953426,1758149433401,-400.0,0.00021917,2]
[385953428,1758149433412,-400.0,0.00021917,2]
[385953430,1758149433422,-400.0,0.00021917,2]
[385953431,1758149433432,-400.0,0.00021917,2]
[385953432,1758149433441,-400.0,0.00021917,2]
[385953433,1758149433451,-400.0,0.00021917,2]
[385953434,1758149433461,-400.0,0.00021917,2]
[385953435,1758149433470,-400.0,0.00021917,2]
[385953436,1758149433480,-400.0,0.00021917,2]
[385953437,1758149433490,-400.0,0.00021917,2]
[385953438,1758149433499,-506.0,0.00021917,2]
[385953439,1758149433509,-400.0,0.00021917,2]
[385953440,1758149433519,-400.0,0.00021917,2]
[385953441,1758149433528,-400.0,0.00021917,2]
[385953442,1758149433538,-400.0,0.00021917,2]
[385953444,1758149433548,-400.0,0.00021917,2]
[385953446,1758149433558,-400.0,0.00021917,2]
[385953448,1758149433569,-400.0,0.00021917,2]
[385953450,1758149433579,-80.25853548,0.00021917,2]
[385953456,1758149433632,-170.99618998,0.00021917,2]
[385953458,1758149433642,-400.0,0.00021917,2]
[385953460,1758149433652,-400.0,0.00021917,2]
[385953462,1758149433663,-400.0,0.00021917,2]
[385953464,1758149433673,-400.0,0.00021917,2]
[385953466,1758149433682,-400.0,0.00021917,2]
[385953468,1758149433692,-400.0,0.00021917,2]
[385953470,1758149433703,-325.9094528,0.00021917,2]
[385953472,1758149433713,-341.09435722,0.00021917,2]
[385953475,1758149433726,-72.63295321,0.00021917,2]
[385953476,1758149433736,-322.67737389,0.00021917,2]
[385953479,1758149433749,-77.32262611,0.00021917,2]
[385953481,1758149433759,-400.0,0.00021917,2]
[385953483,1758149433769,-400.0,0.00021917,2]
[385953485,1758149433779,-400.0,0.00021917,2]
[385953487,1758149433789,-149.77957321,0.00021917,2]
[385953489,1758149433801,-250.22042679,0.00021917,2]
[385953491,1758149433812,-161.53568148,0.00021917,2]
[385953555,1758149438427,-238.46431852,0.00021917,2]
[385953556,1758149438437,-400.0,0.00021917,2]
[385953557,1758149438447,-400.0,0.00021917,2]
[385953558,1758149438457,-400.0,0.00021917,2]
[385953559,1758149438467,-173.68545439,0.00021917,2]
[385953560,1758149438495,-226.31454561,0.00021917,2]
[385953561,1758149438505,-400.0,0.00021917,2]
[385953562,1758149438515,-400.0,0.00021917,2]
[385953563,1758149438524,-400.0,0.00021917,2]
[385953564,1758149438533,-400.0,0.00021917,2]
[385953565,1758149438543,-400.0,0.00021917,2]
[385953566,1758149438552,-400.0,0.00021917,2]
[385953567,1758149438562,-400.0,0.00021917,2]
[385953568,1758149438571,-400.0,0.00021917,2]
[385953569,1758149438580,-400.0,0.00021917,2]
[385953570,1758149438589,-400.0,0.00021917,2]
[385953571,1758149438599,-400.0,0.00021917,2]
[385953573,1758149438608,-400.0,0.00021917,2]
[385953575,1758149438618,-400.0,0.00021917,2]
[385953577,1758149438627,-400.0,0.00021917,2]
[385953579,1758149438637,-400.0,0.00021917,2]
[385953580,1758149438646,-500.0,0.00021917,2]
[385953581,1758149438655,-400.0,0.00021917,2]
[385953582,1758149438665,-400.0,0.00021917,2]
[385953583,1758149438675,-400.0,0.00021917,2]
[385953584,1758149438684,-400.0,0.00021917,2]
[385953585,1758149438694,-400.0,0.00021917,2]
[385953586,1758149438703,-400.0,0.00021917,2]
[385953587,1758149438712,-400.0,0.00021917,2]
[385953588,1758149438721,-400.0,0.00021917,2]
[385953589,1758149438730,-400.0,0.00021917,2]
[385953590,1758149438740,-400.0,0.00021917,2]
[385953591,1758149438749,-400.0,0.00021917,2]
[385953592,1758149438759,-400.0,0.00021917,2]
[385953593,1758149438768,-400.0,0.00021917,2]
[385953594,1758149438778,-400.0,0.00021917,2]
[385953595,1758149438787,-400.0,0.00021917,2]
[385953596,1758149438796,-400.0,0.00021917,2]
[385953597,1758149438805,-400.0,0.00021917,2]
[385953598,1758149438815,-400.0,0.00021917,2]
[385953599,1758149438824,-400.0,0.00021917,2]
[385953600,1758149438834,-400.0,0.00021917,2]
[385953601,1758149438843,-88.93543251,0.00021917,2]
[385953608,1758149440264,-311.06456749,0.00021917,2]
[385953609,1758149440275,-400.0,0.00021917,2]
[385953610,1758149440286,-400.0,0.00021917,2]
[385953611,1758149440295,-400.0,0.00021917,2]
[385953613,1758149440305,-400.0,0.00021917,2]
[385953615,1758149440315,-181.12,0.00021917,2]
[385953617,1758149440324,-400.0,0.00021917,2]
[385953620,1758149440334,-400.0,0.00021917,2]
[385953621,1758149440344,-400.0,0.00021917,2]
[385953623,1758149440354,-400.0,0.00021917,2]
[385953625,1758149440363,-400.0,0.00021917,2]
[385953627,1758149440373,-400.0,0.00021917,2]
[385953629,1758149440382,-400.0,0.00021917,2]
[385953630,1758149440392,-400.0,0.00021917,2]
[385953631,1758149440401,-407.74759343,0.00021917,2]
[385953632,1758149440410,-506.62736866,0.00021917,2]
[385953633,1758149440420,-405.98299265,0.00021917,2]
[385953634,1758149440429,-192.05509752,0.00021917,2]
[385953635,1758149440439,-400.0,0.00021917,2]
[385953636,1758149440448,-400.0,0.00021917,2]
[385953637,1758149440458,-402.23411152,0.00021917,2]
[385953638,1758149440468,-400.0,0.00021917,2]
[385953639,1758149440477,-400.0,0.00021917,2]
[385953640,1758149440487,-400.0,0.00021917,2]
[385953641,1758149440496,-400.0,0.00021917,2]
[385953642,1758149440505,-400.0,0.00021917,2]
[385953643,1758149440515,-400.0,0.00021917,2]
[385953644,1758149440524,-400.0,0.00021917,2]
[385953645,1758149440533,-400.0,0.00021917,2]
[385953646,1758149440543,-400.0,0.00021917,2]
[385953647,1758149440552,-400.0,0.00021917,2]
[385953648,1758149440561,-400.0,0.00021917,2]
[385953649,1758149440570,-400.0,0.00021917,2]
[385953650,1758149440579,-400.0,0.00021917,2]
[385953651,1758149440589,-400.0,0.00021917,2]
[385953652,1758149440598,-400.0,0.00021917,2]
[385953653,1758149440607,-400.0,0.00021917,2]
[385953654,1758149440616,-400.0,0.00021917,2]
[385953655,1758149440625,-400.0,0.00021917,2]
[385953656,1758149440635,-400.0,0.00021917,2]
[385953657,1758149440644,-400.0,0.00021917,2]
[385953658,1758149440653,-400.0,0.00021917,2]
[385953659,1758149440663,-400.0,0.00021917,2]
[385953660,1758149440673,-400.0,0.00021917,2]
[385953661,1758149440682,-400.0,0.00021917,2]
[385953662,1758149440691,-416.80508215,0.00021917,2]
[385953663,1758149440700,-449.78239941,0.00021917,2]
[385953664,1758149440709,-400.0,0.00021917,2]
[385953665,1758149440719,-400.0,0.00021917,2]
[385953666,1758149440728,-405.5920314,0.00021917,2]
[385953667,1758149440737,-400.0,0.00021917,2]
[385953668,1758149440746,-400.0,0.00021917,2]
[385953669,1758149440755,-400.0,0.00021917,2]
[385953670,1758149440765,-400.0,0.00021917,2]
[385953671,1758149440774,-400.0,0.00021917,2]
[385953672,1758149440783,-280.0,0.00021917,2]
[385953673,1758149440792,-400.0,0.00021917,2]
[385953674,1758149440801,-400.0,0.00021917,2]
[385953675,1758149440810,-400.0,0.00021917,2]
[385953676,1758149440819,-400.0,0.00021917,2]
[385953677,1758149440828,-400.0,0.00021917,2]
[385953678,1758149440837,-400.0,0.00021917,2]
[385953679,1758149440847,-400.0,0.00021917,2]
[385953680,1758149440856,-459.77,0.00021917,2]
[385953681,1758149440866,-401.94383944,0.00021917,2]
[385953682,1758149440876,-400.0,0.00021917,2]
[385953683,1758149440885,-400.0,0.00021917,2]
[385953684,1758149440894,-400.0,0.00021917,2]
[385953685,1758149440904,-400.0,0.00021917,2]
[385953686,1758149440913,-400.0,0.00021917,2]
[385953687,1758149440923,-400.0,0.00021917,2]
[385953688,1758149440933,-400.0,0.00021917,2]
[385953689,1758149440942,-400.0,0.00021917,2]
[385953690,1758149440951,-400.0,0.00021917,2]
[385953691,1758149440960,-400.0,0.00021917,2]
[385953692,1758149440969,-400.0,0.00021917,2]
[385953693,1758149440978,-400.0,0.00021917,2]
[385953694,1758149440988,-400.0,0.00021917,2]
[385953695,1758149440997,-400.0,0.00021917,2]
[385953696,1758149441007,-400.0,0.00021917,2]
[385953697,1758149441016,-300.0,0.00021917,2]
[385953698,1758149441025,-400.0,0.00021917,2]
[385953699,1758149441034,-400.0,0.00021917,2]
[385953700,1758149441046,-400.0,0.00021917,2]
[385953701,1758149441056,-400.0,0.00021917,2]
[385953702,1758149441065,-400.0,0.00021917,2]
[385953703,1758149441074,-400.0,0.00021917,2]
[385953704,1758149441083,-400.0,0.00021917,2]
[385953705,1758149441093,-400.0,0.00021917,2]
[385953706,1758149441103,-400.0,0.00021917,2]
[385953707,1758149441112,-400.0,0.00021917,2]
[385953708,1758149441123,-400.0,0.00021917,2]
[385953709,1758149441133,-400.0,0.00021917,2]
[385953710,1758149441142,-400.0,0.00021917,2]
[385953711,1758149441151,-400.0,0.00021917,2]
[385953712,1758149441161,-400.0,0.00021917,2]
[385953713,1758149441171,-400.0,0.00021917,2]
[385953714,1758149441180,-400.0,0.00021917,2]
[385953715,1758149441190,-400.0,0.00021917,2]
[385953716,1758149441200,-400.0,0.00021917,2]
[385953717,1758149441210,-400.0,0.00021917,2]
[385953718,1758149441220,-400.0,0.00021917,2]
[385953719,1758149441230,-400.0,0.00021917,2]
[385953720,1758149441239,-188.2454061,0.00021917,2]
[385953721,1758149441248,-400.0,0.00021917,2]
[385953722,1758149441258,-400.0,0.00021917,2]
[385953723,1758149441267,-400.0,0.00021917,2]
[385953724,1758149441276,-400.0,0.00021917,2]
[385953725,1758149441286,-400.0,0.00021917,2]
[385953726,1758149441366,-549.82979323,0.00021917,2]
[385953727,1758149441376,-400.0,0.00021917,2]
[385953728,1758149441386,-400.0,0.00021917,2]
[385953729,1758149441395,-401.7046751,0.00021917,2]
[385953730,1758149441406,-400.0,0.00021917,2]
[385953731,1758149441426,-466.1859388,0.00021917,2]
[385953732,1758149441445,-400.0,0.00021917,2]
[385953733,1758149441465,-264.55954114,0.00021917,2]
[385953734,1758149441486,-400.0,0.00021917,2]
[385953735,1758149441506,-400.0,0.00021917,2]
[385953736,1758149441526,-400.0,0.00021917,2]
[385953737,1758149441546,-400.0,0.00021917,2]
[385953738,1758149441568,-400.0,0.00021917,2]
[385953739,1758149441588,-412.31498059,0.00021917,2]
[385953740,1758149441609,-400.0,0.00021917,2]
[385953741,1758149441626,-400.0,0.00021917,2]
[385953742,1758149441647,-400.0,0.00021917,2]
[385953743,1758149441669,-400.0,0.00021917,2]
[385953744,1758149441690,-400.0,0.00021917,2]
[385953745,1758149441712,-400.0,0.00021917,2]
[385953746,1758149441732,-415.07,0.00021917,2]
[385953747,1758149441741,-400.0,0.00021917,2]
[385953748,1758149441750,-400.0,0.00021917,2]
[385953749,1758149441760,-400.0,0.00021917,2]
[385953750,1758149441769,-405.06758541,0.00021917,2]
[385953751,1758149441778,-400.0,0.00021917,2]
[385953752,1758149441787,-400.0,0.00021917,2]
[385953753,1758149441796,-400.0,0.00021917,2]
[385953754,1758149441805,-400.0,0.00021917,2]
[385953755,1758149441814,-400.0,0.00021917,2]
[385953756,1758149441824,-400.0,0.00021917,2]
[385953757,1758149441833,-400.0,0.00021917,2]
[385953758,1758149441842,-354.39512369,0.00021917,2]
[385953759,1758149441852,-400.0,0.00021917,2]
[385953760,1758149441871,-400.0,0.00021917,2]
[385953761,1758149441881,-400.0,0.00021917,2]
[385953762,1758149441891,-400.0,0.00021917,2]
[385953763,1758149441900,-400.0,0.00021917,2]
[385953764,1758149441910,-400.0,0.00021917,2]
[385953765,1758149441920,-400.0,0.00021917,2]